bitfinex/quotes_ETHUSD_20251107
["timestamp","ask_amount","ask_price","bid_price","bid_amount"]
[1762489934639,0.002,3337.1,3336.1,0.4863]
[1762489934826,0.002,3337.1,3336.2,0.4761]
[1762489935075,2.99689086,3336.8,3336.2,0.4761]
[1762489935360,2.99697512,3336.7,3336.2,0.4761]
[1762489935740,4.20861919,3336.7,3336.2,0.4761]
[1762489935959,2.99725152,3336.4,3336.2,0.4761]
[1762489936160,2.99717161,3336.5,3336.2,0.4761]
[1762489936353,2.9970915,3336.6,3336.3,0.4803]
[1762489936549,2.9970915,3336.6,3336.2,0.4761]
[1762489936862,2.9970915,3336.6,3336.5,0.4803]
[1762489937165,1.259712,3336.9,3336.5,0.4803]
[1762489937335,1.259712,3336.7,3336.6,0.9564]
[1762489937534,4.25668505,3336.7,3336.6,0.9564]
[1762489937858,1.259712,3336.7,3336.6,0.9564]
[1762489938064,0.002,3337.1,3336.6,0.4803]
[1762489938239,2.99861382,3337.1,3337.0,0.4803]
[1762489938629,1.261712,3337.1,3337.0,0.4803]
[1762489938830,1.261712,3337.1,3337.0,0.9564]
[1762489938831,0.002,3337.1,3337.0,0.9564]
[1762489945078,0.002,3337.1,3337.0,3.95310362]
[1762489945239,0.002,3337.1,3337.0,0.9574]
[1762489945558,0.002,3337.1,3337.0,4.67918234]
[1762489945748,0.002,3337.1,3337.0,4.64921531]
[1762489946846,0.002,3337.1,3337.0,3.95410362]
[1762489955035,0.002,3337.1,3337.0,8.30164737]
[1762489955180,0.002,3337.1,3337.0,8.42128034]
[1762489955489,0.002,3337.5,3337.4,2.99634445]
[1762489955687,0.002,3337.5,3337.4,3.95274445]
[1762489955879,0.002,3337.5,3337.4,4.81640288]
[1762489956075,0.002,3337.5,3337.4,1.82005843]
[1762489956282,0.002,3337.5,3337.4,1.106]
[1762489956787,0.002,3337.5,3337.4,4.10234445]
[1762489958804,0.002,3337.5,3337.4,4.13230789]
[1762489959004,0.002,3337.5,3337.4,4.10234445]
[1762489960488,0.002,3337.5,3337.4,4.13230789]
[1762489961233,0.002,3337.5,3337.4,4.83436619]
[1762489962796,0.002,3337.5,3337.4,4.86432963]
[1762489963581,0.002,3337.5,3337.4,1.68842174]
[1762489963884,0.002,3337.5,3337.1,0.4772]
[1762489964114,0.4567,3337.2,3337.1,0.001]
[1762489964832,0.9485,3337.2,3337.1,0.001]
[1762489965453,3.45322403,3337.2,3337.1,0.001]
[1762489965596,3.94502403,3337.2,3337.1,0.001]
[1762489966041,0.9485,3337.2,3337.1,0.001]
[1762489966534,0.4567,3337.2,3337.1,0.001]
[1762489968038,2.99635254,3337.4,3337.1,0.001]
[1762489968736,0.4567,3337.2,3337.1,0.001]
[1762489969329,2.99638181,3337.4,3337.1,0.001]
[1762489969519,1.753512,3337.5,3337.1,0.001]
[1762489969520,2.99644397,3337.3,3337.1,0.001]
[1762489969718,3.66352799,3337.4,3337.1,0.001]
[1762489970718,0.4567,3337.2,3337.1,0.001]
[1762489974975,3.45322403,3337.2,3337.1,0.001]
[1762489975328,5.20473603,3337.2,3337.1,0.001]
[1762489980254,5.20473603,3337.2,3337.0,0.001]
[1762489980255,4.40592582,3337.1,3337.0,0.001]
[1762489980569,4.40592582,3337.1,3336.7,0.001]
[1762489980570,4.66209924,3336.8,3336.7,0.001]
[1762489980871,9.92417596,3336.8,3336.7,0.001]
[1762489981580,9.92417596,3336.8,3336.1,0.006]
[1762489981581,4.66263821,3336.2,3336.1,0.006]
[1762489981759,9.42901493,3336.2,3336.1,0.006]
[1762489982067,9.92081493,3336.2,3336.1,0.006]
[1762489982274,9.67081493,3336.2,3336.1,0.006]
[1762489984878,2.99832094,3335.2,3335.1,0.005]
[1762489985053,1.327612,3335.2,3335.1,0.005]
[1762489985368,4.25803294,3335.2,3335.1,0.4806]
[1762489986876,4.71473294,3335.2,3335.1,0.005]
[1762489987082,5.20653294,3335.2,3335.1,0.005]
[1762489987488,4.71473294,3335.2,3335.1,0.005]
[1762489988189,5.20653294,3335.2,3335.1,0.005]
[1762489997501,1.259712,3335.2,3335.1,1.1513]
[1762489997800,5.22293294,3335.2,3335.1,0.005]
[1762490000195,5.22293294,3335.2,3335.1,0.006]
[1762490001674,4.74603294,3335.2,3335.1,0.006]
[1762490001868,4.25803294,3335.2,3335.1,0.006]
[1762490002192,5.22293294,3335.2,3335.1,0.006]
[1762490002502,4.74603294,3335.2,3335.1,0.006]
[1762490003770,4.25803294,3335.2,3335.1,0.469]
[1762490003972,0.1496,3335.3,3335.1,1.1523]
[1762490004207,0.1496,3335.3,3335.1,0.6893]
[1762490004411,0.1496,3335.3,3335.2,0.9501]
[1762490004606,0.1496,3335.3,3335.2,3.94842094]
[1762490004795,0.1496,3335.3,3335.2,0.9501]
[1762490004986,0.1496,3335.3,3335.2,1.66501965]
[1762490005524,0.1496,3335.3,3335.2,4.66334059]
[1762490006073,0.002,3336.1,3335.2,1.66501965]
[1762490006273,0.002,3336.1,3336.0,0.463]
[1762490006670,0.002,3336.1,3336.0,0.9501]
[1762490006874,1.261712,3336.1,3336.0,0.463]
[1762490007101,4.25922406,3336.1,3336.0,0.463]
[1762490007308,0.002,3336.1,3336.0,0.9501]
[1762490010283,0.002,3336.1,3336.0,0.463]
[1762490010284,4.25922406,3336.1,3336.0,0.463]
[1762490011018,1.261712,3336.1,3336.0,0.463]
[1762490011577,4.25922406,3336.1,3336.0,0.463]
[1762490012238,4.74722406,3336.1,3335.1,0.2022]
[1762490012390,0.0454,3335.9,3335.1,0.6893]
[1762490012742,2.9979813,3335.6,3335.1,0.6893]
[1762490013041,2.99789397,3335.7,3335.2,0.4871]
[1762490013174,2.99789397,3335.7,3335.5,0.463]
[1762490013519,2.99789397,3335.7,3335.6,0.463]
[1762490014391,0.488,3335.7,3335.1,0.2022]
[1762490014588,2.99814459,3335.4,3335.1,0.2022]
[1762490015009,2.99814459,3335.4,3335.3,0.463]
[1762490015797,2.99808104,3335.5,3335.3,0.463]
[1762490016418,2.99814115,3335.4,3335.3,0.463]
[1762490016839,0.1496,3335.3,3335.1,0.2022]
[1762490017333,0.1496,3335.3,3335.2,0.463]
[1762490017518,0.1496,3335.3,3335.2,0.9501]
[1762490018547,0.1496,3335.3,3335.2,1.66802671]
[1762490018901,0.1496,3335.4,3335.3,2.99817832]
[1762490019423,0.1496,3335.4,3335.3,3.49507832]
[1762490019601,0.1496,3335.4,3335.3,3.95987832]
[1762490020020,0.002,3336.1,3335.3,3.95987832]
[1762490020220,0.1496,3335.9,3335.5,2.99798819]
[1762490020428,0.1496,3335.9,3335.4,3.46288153]
[1762490020731,0.1496,3335.9,3335.8,0.4969]
[1762490021135,0.1496,3335.9,3335.8,0.9879]
[1762490022007,0.002,3336.1,3335.9,2.99768878]
[1762490022219,0.002,3336.1,3336.0,0.49327601]
[1762490022420,0.002,3336.1,3336.0,0.98427601]
[1762490023223,0.002,3336.1,3336.0,3.98187792]
[1762490023942,0.002,3336.1,3336.0,0.9543]
[1762490024122,0.002,3336.1,3336.0,0.4633]
[1762490025659,1.734412,3336.1,3335.1,0.6932]
[1762490025944,2.99814029,3335.5,3335.1,0.006]
[1762490026148,3.14775832,3335.4,3335.1,0.006]
[1762490026566,3.14775832,3335.4,3335.3,0.4633]
[1762490028832,3.62045832,3335.4,3335.1,0.006]
[1762490029041,3.14775832,3335.4,3335.1,0.006]
[1762490029215,2.99823226,3335.3,3335.1,0.006]
[1762490029735,2.99823226,3335.3,3335.2,0.4633]
[1762490030342,3.14776636,3335.4,3335.2,0.4633]
[1762490030734,2.99825059,3335.3,3335.1,0.006]
[1762490031025,4.73073294,3335.2,3335.1,0.006]
[1762490032918,4.25803294,3335.2,3335.1,0.4693]
[1762490033115,4.73073294,3335.2,3335.1,0.006]
[1762490033317,5.22223294,3335.2,3335.1,0.006]
[1762490039044,4.25803294,3335.2,3335.1,0.006]
[1762490039253,4.73073294,3335.2,3335.1,0.006]
[1762490039449,5.22223294,3335.2,3335.1,0.006]
[1762490040848,9.43804781,3335.2,3335.1,0.006]
[1762490041251,9.43804781,3335.2,3334.7,0.001]
[1762490041252,4.25839258,3334.8,3334.7,0.001]
[1762490041466,4.78999258,3334.8,3334.7,0.001]
[1762490041949,4.29849258,3334.8,3334.7,0.001]
[1762490042149,4.29849258,3334.8,3334.7,0.4643]
[1762490042150,4.25839258,3334.8,3334.7,0.4643]
[1762490042457,4.25839258,3334.8,3334.7,0.001]
[1762490042458,5.22259258,3334.8,3334.7,0.001]
[1762490042965,9.43840745,3334.8,3334.7,0.001]
[1762490047583,9.84391145,3334.8,3334.7,0.001]
[1762490050884,10.33491145,3334.8,3334.7,0.001]
[1762490052370,8.88025107,3334.2,3334.1,0.005]
[1762490052571,8.91265107,3334.2,3334.1,0.005]
[1762490053096,9.37595107,3334.2,3334.1,0.005]
[1762490055003,4.81412615,3334.1,3334.0,0.001]
[1762490055316,5.73972615,3334.1,3334.0,0.001]
[1762490055469,5.93812615,3334.1,3334.0,0.001]
[1762490060119,5.06932215,3334.1,3334.0,0.001]
[1762490060416,4.25902215,3334.1,3334.0,0.9599]
[1762490060815,4.32571366,3334.6,3334.0,0.9599]
[1762490061135,4.25893939,3334.2,3334.1,0.6755]
[1762490061294,4.25902215,3334.1,3334.0,0.001]
[1762490061742,4.25902215,3334.1,3334.0,0.9599]
[1762490062297,4.25902215,3334.1,3334.0,0.4784]
[1762490063420,5.18462215,3334.1,3334.0,0.001]
[1762490066631,5.59012615,3334.1,3334.0,0.001]
[1762490069914,5.12682615,3334.1,3334.0,0.001]
[1762490070120,5.59012615,3334.1,3334.0,0.001]
[1762490070557,4.66452615,3334.1,3334.0,0.001]
[1762490071465,4.26102215,3334.1,3334.0,0.9599]
[1762490071613,4.26102215,3334.1,3334.0,0.4784]
[1762490071815,0.002,3334.1,3334.0,0.4784]
[1762490072014,0.002,3334.1,3334.0,0.9599]
[1762490072015,4.26102215,3334.1,3334.0,0.9599]
[1762490072251,4.26102215,3334.1,3334.0,0.4784]
[1762490072453,4.26102215,3334.1,3334.0,0.9599]
[1762490075138,4.26102215,3334.1,3334.0,0.4784]
[1762490075840,4.26102215,3334.1,3334.0,0.9599]
[1762490076015,4.26102215,3334.1,3334.0,0.4784]
[1762490076214,4.26102215,3334.1,3334.0,0.001]
[1762490076215,9.04903581,3334.1,3334.0,0.001]
[1762490076555,9.51233581,3334.1,3334.0,0.001]
[1762490077559,9.04903581,3334.1,3334.0,0.001]
[1762490077714,5.51243038,3334.1,3334.0,0.001]
[1762490077916,9.45453981,3334.1,3334.0,0.001]
[1762490078357,14.26915347,3334.1,3334.0,0.001]
[1762490080941,9.94343981,3334.1,3334.0,0.001]
[1762490081457,9.94343981,3334.1,3333.6,0.001]
[1762490081458,4.66488603,3333.7,3333.6,0.001]
[1762490081752,9.03579969,3333.7,3333.6,0.001]
[1762490081956,9.50109969,3333.7,3333.6,0.001]
[1762490082134,10.40266254,3333.7,3333.6,0.001]
[1762490089870,4.665336,3333.2,3333.1,0.005]
[1762490090032,9.91904966,3333.2,3333.1,0.005]
[1762490090864,9.91904966,3333.2,3332.6,1.89221763]
[1762490090865,4.6657861,3332.7,3332.6,1.89221763]
[1762490091070,9.44999976,3332.7,3332.6,1.89221763]
[1762490091266,9.91529976,3332.7,3332.6,1.89221763]
[1762490091972,3.00102034,3332.2,3332.1,0.005]
[1762490092201,9.17465,3332.2,3332.1,0.005]
[1762490092335,9.63995,3332.2,3332.1,0.005]
[1762490093449,13.96566366,3332.2,3332.1,0.005]
[1762490095050,8.58707656,3331.5,3331.4,0.1954]
[1762490095586,8.58707656,3331.5,3331.4,0.6941]
[1762490099747,1.259712,3331.5,3331.4,1.1628]
[1762490099873,4.2613629,3331.5,3331.4,1.1628]
[1762490100073,1.259712,3331.5,3331.4,1.1628]
[1762490100270,4.2613629,3331.5,3331.4,1.1628]
[1762490100575,3.00192122,3331.2,3331.1,0.005]
[1762490100810,4.26163322,3331.2,3331.1,0.005]
[1762490101016,4.26163322,3331.2,3331.1,0.5037]
[1762490101185,1.259712,3331.2,3331.1,0.9724]
[1762490103319,1.259712,3331.2,3331.1,3.97441134]
[1762490103538,0.1496,3331.3,3331.2,3.00185897]
[1762490103685,3.00116218,3332.1,3332.0,0.1954]
[1762490104085,4.32571366,3332.7,3332.0,1.1628]
[1762490104418,4.32571366,3332.7,3332.6,0.4987]
[1762490104622,3.00054078,3332.8,3332.6,0.4987]
[1762490104822,3.00054078,3332.8,3332.7,0.4687]
[1762490104823,3.00056043,3332.8,3332.7,0.4687]
[1762490105022,4.32571366,3333.3,3332.7,0.9674]
[1762490105187,3.00037584,3333.0,3332.9,0.4987]
[1762490105388,4.26008784,3333.0,3332.9,0.9674]
[1762490105788,3.00037584,3333.0,3332.9,0.9674]
[1762490105998,3.00037584,3333.0,3332.9,0.4987]
[1762490106204,4.26046218,3332.5,3332.4,0.4687]
[1762490106637,4.26046218,3332.5,3332.4,0.9674]
[1762490108142,1.259712,3332.5,3332.4,0.9674]
[1762490110032,1.409312,3332.5,3332.4,0.9674]
[1762490110239,1.409312,3332.5,3332.4,1.3642411]
[1762490110738,4.41006218,3332.5,3332.4,0.4987]
[1762490111152,1.409312,3332.5,3332.4,0.4987]
[1762490111322,1.409312,3332.5,3332.4,0.9513]
[1762490112338,4.41006218,3332.5,3332.4,0.9513]
[1762490112944,1.409312,3332.5,3332.4,0.9513]
[1762490113460,4.41006218,3332.5,3332.4,0.4987]
[1762490114370,1.409312,3332.5,3332.1,0.4526]
[1762490114668,4.26073234,3332.2,3332.1,0.4526]
[1762490115075,4.26073234,3332.2,3332.1,0.9505]
[1762490115224,4.26073234,3332.2,3332.1,0.4979]
[1762490115423,1.259712,3332.2,3332.1,0.9505]
[1762490116055,4.26073234,3332.2,3332.1,0.9505]
[1762490116257,4.26073234,3332.2,3332.1,0.4979]
[1762490116640,0.1496,3332.1,3331.3,0.1496]
[1762490116956,3.00192122,3331.2,3331.1,0.006]
[1762490117156,4.26163322,3331.2,3331.1,0.006]
[1762490117367,4.26163322,3331.2,3331.1,0.5039]
[1762490118321,4.26163322,3331.2,3331.1,0.006]
[1762490118593,4.75673322,3331.2,3331.1,0.006]
[1762490119351,5.23913322,3331.2,3331.1,0.006]
[1762490120534,4.75673322,3331.2,3331.1,0.006]
[1762490121882,5.23913322,3331.2,3331.1,0.006]
[1762490122191,4.75673322,3331.2,3331.1,0.006]
[1762490123953,4.26163322,3331.2,3331.1,0.006]
[1762490124171,4.75673322,3331.2,3331.1,0.006]
[1762490124484,4.26163322,3331.2,3331.1,0.006]
[1762490124807,0.4824,3332.4,3331.1,0.9979]
[1762490124958,3.00102034,3332.2,3331.3,0.4979]
[1762490125161,3.00189975,3331.3,3331.1,0.006]
[1762490125371,4.75673322,3331.2,3331.1,0.006]
[1762490125741,5.23913322,3331.2,3331.1,0.006]
[1762490125943,3.00192122,3331.2,3331.1,0.5453]
[1762490126257,3.00192122,3331.2,3331.1,0.9979]
[1762490126641,3.00192122,3331.2,3331.1,0.5453]
[1762490126951,3.00392122,3331.2,3331.1,0.9979]
[1762490127360,3.00392122,3331.2,3331.1,0.5453]
[1762490127859,3.00392122,3331.2,3331.1,0.5039]
[1762490128980,5.24113322,3331.2,3331.1,0.006]
[1762490129370,1.261712,3331.2,3331.1,0.5453]
[1762490129539,1.261712,3331.2,3331.1,0.5039]
[1762490129540,4.26363322,3331.2,3331.1,0.5039]
[1762490129744,4.75873322,3331.2,3331.1,0.006]
[1762490129975,5.24113322,3331.2,3331.1,0.006]
[1762490133812,5.64663722,3331.2,3331.1,0.006]
[1762490135609,4.26363322,3331.2,3331.1,0.5453]
[1762490135771,4.26363322,3331.2,3331.1,0.006]
[1762490135772,4.75873322,3331.2,3331.1,0.006]
[1762490137755,4.26363322,3331.2,3331.1,0.006]
[1762490137940,4.26363322,3331.2,3331.1,0.5453]
[1762490138252,4.26363322,3331.2,3331.1,0.9979]
[1762490140220,4.75543322,3331.2,3331.1,0.5039]
[1762490140456,5.24193322,3331.2,3331.1,0.006]
[1762490140833,4.75543322,3331.2,3331.1,0.006]
[1762490141043,4.26363322,3331.2,3331.1,1.1415]
[1762490142126,0.002,3331.2,3331.1,1.1415]
[1762490142669,1.261712,3331.2,3331.1,1.1415]
[1762490142868,0.002,3331.2,3331.1,1.1415]
[1762490143073,4.26363322,3331.2,3331.1,1.1415]
[1762490143554,4.26363322,3331.2,3331.1,0.006]
[1762490143760,4.73433322,3331.2,3331.1,0.006]
[1762490144778,4.26363322,3331.2,3331.1,0.006]
[1762490144985,4.26363322,3331.2,3331.1,1.1415]
[1762490145468,4.26363322,3331.2,3331.1,0.6745]
[1762490146673,4.26363322,3331.2,3331.1,1.1415]
[1762490148491,0.002,3331.2,3331.1,1.1415]
[1762490149483,0.002,3331.2,3331.1,1.55586643]
[1762490149884,0.002,3331.2,3331.1,1.1415]
[1762490151893,0.002,3331.6,3331.1,1.1415]
[1762490152094,4.2238781,3333.7,3331.5,0.4739]
[1762490152316,2.99995644,3333.4,3332.5,0.6685]
[1762490152520,0.002,3334.1,3332.5,0.6685]
[1762490152521,0.457,3333.2,3332.5,0.6685]
[1762490152719,3.30357006,3332.6,3332.1,0.1946]
[1762490153016,5.4835901,3332.5,3332.1,0.1946]
[1762490153425,3.00091325,3332.4,3332.1,0.1946]
[1762490153807,8.48435373,3332.5,3332.1,0.1946]
[1762490153980,3.00084023,3332.4,3332.1,0.1946]
[1762490156720,3.0008424,3332.4,3332.1,0.1946]
[1762490157224,5.4835901,3332.5,3331.5,0.467]
[1762490157225,3.00111363,3332.1,3331.5,0.467]
[1762490157413,3.00111363,3332.1,3331.6,0.467]
[1762490157725,5.9405901,3332.5,3332.0,0.4739]
[1762490157890,3.00111041,3332.1,3332.0,0.4739]
[1762490158086,4.26055223,3332.4,3332.0,0.4739]
[1762490158314,3.00102921,3332.2,3332.0,0.4739]
[1762490158717,3.00102921,3332.2,3332.1,0.4739]
[1762490159403,4.26055223,3332.4,3332.1,0.4739]
[1762490159720,3.0008992,3332.4,3332.3,0.4739]
[1762490160126,0.002,3332.6,3332.3,0.4739]
[1762490160296,1.259712,3332.4,3332.3,0.4739]
[1762490160494,1.259712,3332.4,3332.1,0.1946]
[1762490160495,0.4707,3332.4,3332.1,0.1946]
[1762490160804,0.4707,3332.4,3331.8,0.467]
[1762490160805,3.00102034,3332.2,3331.8,0.467]
[1762490160997,4.26060563,3332.4,3332.3,0.4739]
[1762490161192,1.259712,3332.3,3332.1,0.1946]
[1762490161413,1.259712,3332.4,3332.1,0.1946]
[1762490161619,4.26073234,3332.2,3332.1,0.1946]
[1762490161918,4.26073234,3332.2,3331.8,0.467]
[1762490162115,4.26073234,3332.2,3332.1,0.4739]
[1762490162323,1.259712,3332.2,3332.1,0.4739]
[1762490162628,4.26073234,3332.2,3332.1,0.4739]
[1762490162852,1.259712,3332.1,3331.4,0.467]
[1762490163002,3.00181146,3331.4,3330.9,0.467]
[1762490163334,0.1496,3331.2,3330.9,0.467]
[1762490163797,0.1496,3331.2,3331.1,0.6745]
[1762490164246,0.1496,3331.2,3331.1,1.1415]
[1762490164598,0.1496,3331.2,3331.1,0.6745]
[1762490164820,0.1496,3331.2,3331.1,1.1415]
[1762490165136,0.1496,3331.2,3331.1,1.55887069]
[1762490165344,0.1496,3331.5,3331.1,4.56088203]
[1762490165556,0.1496,3331.5,3331.4,0.4739]
[1762490165833,1.259712,3332.0,3331.4,0.4739]
[1762490166000,3.00104321,3332.2,3331.7,0.4739]
[1762490166327,3.0011109,3332.1,3331.9,0.4739]
[1762490166530,3.00121177,3332.0,3331.2,4.257]
[1762490166727,3.00144144,3331.8,3331.3,0.44576]
[1762490166935,3.00129229,3331.9,3331.3,0.91276]
[1762490167231,1.716712,3332.2,3331.3,0.91276]
[1762490167232,3.00138063,3331.8,3331.7,0.4739]
[1762490167602,3.00148844,3331.7,3331.3,0.467]
[1762490167944,1.259712,3332.0,3331.3,0.467]
[1762490168132,3.00138321,3331.8,3331.6,0.4739]
[1762490168529,3.00147481,3331.7,3331.3,0.74594923]
[1762490169044,3.00140526,3331.8,3331.6,0.4739]
[1762490169439,3.00140526,3331.8,3331.7,0.4739]
[1762490170805,2.99999163,3333.4,3331.4,0.467]
[1762490171114,3.00125395,3332.0,3331.5,0.4994]
[1762490171317,0.4897,3332.5,3331.2,0.4994]
[1762490171640,3.00152532,3331.7,3331.2,0.4994]
[1762490171803,3.00152532,3331.7,3331.2,0.86961008]
[1762490172006,3.00192122,3331.2,3331.1,0.2006]
[1762490172324,1.259712,3331.3,3331.1,0.006]
[1762490172516,3.00184658,3331.3,3331.1,0.4751]
[1762490172718,1.259712,3332.3,3331.2,4.16533846]
[1762490172920,1.261712,3332.6,3331.3,0.88623385]
[1762490173131,1.261712,3332.6,3331.5,3.00164083]
[1762490173132,1.259712,3332.1,3331.5,3.00164083]
[1762490173309,1.259712,3332.1,3331.6,3.00155296]
[1762490173641,1.259712,3332.1,3332.0,0.4691]
[1762490174543,3.00120053,3332.0,3331.3,0.4994]
[1762490174706,3.00143694,3331.8,3331.3,0.4994]
[1762490174910,3.00143694,3331.8,3331.3,0.86963319]
[1762490175125,3.00143694,3331.8,3331.7,0.4691]
[1762490175534,0.4896,3332.1,3331.2,0.195]
[1762490175742,0.4896,3332.1,3331.2,0.6944]
[1762490175743,0.1496,3331.6,3331.2,0.6944]
[1762490175923,0.1496,3331.6,3331.2,1.07959605]
[1762490176125,0.1496,3331.6,3331.5,0.4691]
[1762490178465,0.1496,3331.6,3331.2,0.58019605]
[1762490178667,0.1496,3331.6,3331.1,0.1556]
[1762490178668,1.409312,3331.4,3331.1,0.006]
[1762490178844,4.26163322,3331.2,3331.1,0.006]
[1762490179160,4.26163322,3331.2,3331.1,0.4751]
[1762490179348,1.259712,3331.2,3331.1,0.6701]
[1762490179669,1.259712,3331.2,3331.1,1.1695]
[1762490179964,1.259712,3331.2,3331.1,0.6701]
[1762490180669,4.26163322,3331.2,3331.1,0.6701]
[1762490181169,4.74293322,3331.2,3331.1,0.006]
[1762490181849,4.26163322,3331.2,3331.1,0.006]
[1762490182051,1.259712,3331.2,3331.1,0.4751]
[1762490182256,1.259712,3331.2,3331.1,1.1695]
[1762490182443,1.259712,3331.2,3331.1,1.19952011]
[1762490183277,0.1516,3331.8,3331.5,3.001594]
[1762490183459,0.002,3331.8,3331.7,0.4691]
[1762490184134,0.002,3331.8,3331.7,0.9685]
[1762490187147,7.99599669,3331.8,3331.5,0.0300165]
[1762490187468,4.26163322,3331.2,3331.1,0.006]
[1762490187683,6.24053123,3331.2,3331.1,0.006]
[1762490187975,6.73023123,3331.2,3331.1,0.006]
[1762490188188,11.06134729,3331.2,3331.1,0.006]
[1762490188346,6.73023123,3331.2,3331.1,0.006]
[1762490188537,5.22903322,3331.2,3331.1,0.006]
[1762490189159,3.00257266,3330.5,3330.1,0.0654]
[1762490189338,1.259712,3330.4,3330.1,0.0654]
[1762490189837,1.259712,3330.4,3330.3,0.2456]
[1762490190060,4.26221043,3330.6,3330.3,0.2456]
[1762490190260,1.259712,3330.4,3330.3,0.2456]
[1762490190461,3.00264232,3330.4,3330.3,0.2456]
[1762490190635,1.259712,3330.4,3330.3,0.2456]
[1762490192060,1.259712,3330.4,3330.3,0.4912]
[1762490192373,1.259712,3330.4,3330.3,0.84061096]
[1762490192667,1.259712,3330.4,3330.3,0.4912]
[1762490195845,3.00222222,3330.9,3330.3,0.2456]
[1762490195846,0.1802,3330.9,3330.3,0.2456]
[1762490196146,3.00277782,3330.3,3330.0,0.1954]
[1762490196341,1.749412,3330.8,3330.0,0.1954]
[1762490196562,0.6826612,3330.8,3330.0,0.1954]
[1762490197081,3.00273357,3330.3,3330.0,0.1954]
[1762490197380,3.00273357,3330.3,3330.1,0.1496]
[1762490197602,3.00273357,3330.3,3330.2,0.2456]
[1762490197756,3.00267514,3330.4,3330.2,0.2456]
[1762490199291,3.00273248,3330.3,3330.1,0.1496]
[1762490200291,3.00269824,3330.4,3330.1,0.1496]
[1762490200491,3.00273248,3330.3,3330.1,0.1496]
[1762490201574,3.00273248,3330.3,3330.1,0.1506]
[1762490201790,3.0026531,3330.4,3330.1,0.1506]
[1762490201972,0.002,3330.3,3330.1,0.1506]
[1762490202172,0.002,3330.3,3330.2,0.03002822]
[1762490202405,0.002,3330.3,3330.2,0.27562822]
[1762490203717,0.002,3330.3,3330.2,0.2456]
[1762490203864,3.00473248,3330.3,3330.2,0.2456]
[1762490204066,0.002,3330.3,3330.2,0.2456]
[1762490205627,3.00473248,3330.3,3330.2,0.2456]
[1762490205824,0.002,3330.3,3330.2,0.2456]
[1762490209407,0.002,3330.3,3330.2,0.4912]
[1762490209586,0.002,3330.3,3330.2,3.87803717]
[1762490209922,0.002,3330.3,3330.2,4.02763717]
[1762490210107,0.002,3330.3,3330.2,4.05766539]
[1762490210419,0.002,3330.3,3330.2,8.38995806]
[1762490210584,0.002,3330.7,3330.6,3.00246201]
[1762490210928,0.002,3330.7,3330.6,3.87858866]
[1762490211085,0.002,3330.7,3330.6,4.12418866]
[1762490211286,0.002,3330.7,3330.6,4.27378866]
[1762490212296,0.002,3330.7,3330.6,4.24376404]
[1762490212503,0.002,3330.7,3330.6,4.27378866]
[1762490213871,0.002,3330.7,3330.6,4.24376404]
[1762490215274,0.002,3330.7,3330.6,4.27378866]
[1762490215460,1.259712,3331.7,3331.1,3.00196423]
[1762490215658,1.259712,3331.7,3331.6,0.2456]
[1762490216032,1.259712,3331.7,3331.4,0.1496]
[1762490216228,1.259712,3331.7,3331.6,0.2456]
[1762490216750,1.259712,3331.7,3331.4,0.1496]
[1762490217061,1.259712,3331.6,3331.4,0.1496]
[1762490217557,3.00341643,3331.8,3331.5,0.2456]
[1762490217558,0.002,3331.8,3331.5,0.2456]
[1762490217757,0.002,3331.8,3331.7,0.2456]
[1762490218349,0.002,3331.8,3331.4,0.1496]
[1762490218527,0.4547,3331.8,3331.5,0.0300165]
[1762490218730,0.002,3331.8,3331.5,0.0300165]
[1762490219078,0.002,3331.8,3331.4,0.1496]
[1762490219079,3.00340284,3331.8,3331.4,0.1496]
[1762490219541,0.002,3331.8,3331.4,0.1496]
[1762490220390,0.002,3331.8,3331.4,3.3969278]
[1762490220689,0.002,3331.8,3331.4,3.1513278]
[1762490221100,0.002,3331.8,3331.7,0.2456]
[1762490221973,0.4547,3331.8,3331.4,0.1496]
[1762490222182,1.259712,3331.5,3331.4,0.1496]
[1762490222755,3.00150187,3331.7,3331.4,0.1496]
[1762490222756,3.00150187,3331.7,3331.4,0.3952]
[1762490222957,0.002,3331.8,3331.6,0.2456]
[1762490223191,0.002,3331.8,3331.7,0.2456]
[1762490224396,0.002,3331.8,3331.7,3.49267072]
[1762490224604,0.002,3331.8,3331.7,4.21279459]
[1762490227603,0.002,3331.8,3331.7,0.96572387]
[1762490227759,0.002,3331.8,3331.6,3.00147662]
[1762490227959,0.002,3331.8,3331.7,3.24707072]
[1762490228796,0.002,3331.8,3331.7,3.49267072]
[1762490229577,0.002,3331.8,3331.7,3.24707072]
[1762490230572,0.002,3331.8,3331.0,3.95466488]
[1762490230778,0.002,3331.8,3331.7,3.24707072]
[1762490233819,0.4831,3331.8,3331.7,3.00147072]
[1762490234416,0.002,3331.8,3331.7,3.15107072]
[1762490236306,0.4831,3331.8,3331.7,3.15107072]
[1762490236715,0.002,3331.8,3331.7,3.15107072]
[1762490236927,0.002,3331.8,3331.7,4.01194282]
[1762490237385,0.002,3331.8,3331.7,3.76634282]
[1762490239417,0.002,3331.8,3331.7,3.15107072]
[1762490239927,0.9669,3331.8,3331.7,0.1496]
[1762490240133,2.226612,3331.8,3331.3,3.79]
[1762490240431,0.4811,3331.4,3331.3,6.79183111]
[1762490240631,0.4811,3331.4,3331.3,3.79]
[1762490241131,0.4811,3331.4,3331.3,6.79183111]
[1762490243231,0.4811,3331.4,3330.7,0.2456]
[1762490243426,0.4811,3331.2,3330.6,0.001]
[1762490243733,0.4811,3331.2,3330.8,3.00222588]
[1762490243920,0.9649,3331.2,3330.8,3.00222588]